bitfinex/quotes_SOLUSD_20241229
["timestamp","ask_amount","ask_price","bid_price","bid_amount"]
[1735443079252,3.95382047,194.97,194.84,10.17607685]
[1735443080860,3.95382047,194.97,194.83,30.17607685]
[1735443081059,23.776884,194.96,194.83,30.17607685]
[1735443081266,23.776884,194.96,194.83,20.0]
[1735443081560,23.776884,194.96,194.84,20.0]
[1735443081961,23.776884,194.96,194.83,20.0]
[1735443082159,23.776884,194.96,194.82,10.17607685]
[1735443082463,3.95382047,194.97,194.83,10.17607685]
[1735443083858,3.95382047,194.97,194.82,30.17607685]
[1735443084070,23.776884,194.96,194.82,30.17607685]
[1735443084969,23.776884,194.96,194.82,20.0]
[1735443085662,3.95382047,194.97,194.83,10.17607685]
[1735443086363,23.776884,194.96,194.83,10.17607685]
[1735443086966,23.776884,194.96,194.84,8.2554]
[1735443088369,3.95382047,194.97,194.84,8.2554]
[1735443088552,23.776884,194.96,194.84,8.2554]
[1735443097970,16.07606761,194.95,194.84,8.2554]
[1735443098771,19.64689851,194.95,194.84,8.2554]
[1735443099571,16.07606761,194.94,194.84,8.2554]
[1735443103187,23.776884,194.93,194.79,1.5948]
[1735443103477,23.776884,194.93,194.79,21.5948]
[1735443103978,23.776884,194.93,194.79,1.5948]
[1735443104285,39.85295161,194.93,194.79,1.5948]
[1735443104455,39.85295161,194.93,194.8,6.3739]
[1735443104981,16.07606761,194.92,194.8,6.3739]
[1735443105181,17.36359648,194.92,194.8,6.3739]
[1735443105482,1.28752887,194.92,194.8,6.3739]
[1735443105864,1.28752887,194.91,194.8,6.3739]
[1735443106270,1.28752887,194.9,194.8,6.3739]
[1735443106959,1.28752887,194.89,194.8,6.3739]
[1735443107579,1.28752887,194.88,194.8,6.3739]
[1735443108173,1.28752887,194.87,194.8,6.3739]
[1735443108751,1.28752887,194.86,194.8,6.3739]
[1735443108965,39.85295161,194.93,194.8,6.3739]
[1735443109475,23.776884,194.93,194.8,6.3739]
[1735443110451,39.85295161,194.93,194.8,6.3739]
[1735443110779,23.776884,194.93,194.8,6.3739]
[1735443111074,20.93640349,194.92,194.8,6.3739]
[1735443111280,19.64893441,194.92,194.8,6.3739]
[1735443111859,1.28748263,194.91,194.8,6.3739]
[1735443112064,39.85295161,194.93,194.8,6.3739]
[1735443112258,16.07606761,194.92,194.8,6.3739]
[1735443112465,1.28747552,194.91,194.8,6.3739]
[1735443112665,23.776884,194.93,194.8,6.3739]
[1735443114686,19.64855478,194.92,194.8,6.3739]
[1735443116256,23.776884,194.93,194.8,6.3739]
[1735443116463,1.28748264,194.92,194.8,6.3739]
[1735443116664,23.776884,194.93,194.8,6.3739]
[1735443116984,16.07606761,194.92,194.8,6.3739]
[1735443117685,1.28748559,194.91,194.8,6.3739]
[1735443117888,23.776884,194.91,194.8,6.3739]
[1735443119082,16.07606761,194.92,194.8,6.3739]
[1735443119461,1.28748264,194.91,194.8,6.3739]
[1735443119662,16.07606761,194.92,194.8,6.3739]
[1735443120787,1.28748264,194.91,194.8,6.3739]
[1735443120961,16.07606761,194.92,194.8,6.3739]
[1735443121380,16.07606761,194.92,194.8,16.54997685]
[1735443121690,48.22820284,194.94,194.81,10.17607685]
[1735443121872,3.57197042,194.96,194.81,10.17607685]
[1735443121873,16.07606761,194.96,194.81,10.17607685]
[1735443122387,16.07606761,194.95,194.81,10.17607685]
[1735443122562,16.07606761,194.95,194.83,20.0]
[1735443122978,1.28730342,194.94,194.83,20.0]
[1735443123281,16.07606761,194.95,194.83,20.0]
[1735443124067,23.776884,194.94,194.8,73.8739]
[1735443125588,23.776884,194.94,194.8,6.3739]
[1735443126764,23.776884,194.95,194.8,6.3739]
[1735443127772,39.85295161,194.95,194.8,6.3739]
[1735443131986,23.776884,194.95,194.8,6.3739]
[1735443132691,39.85295161,194.95,194.8,6.3739]
[1735443134088,16.07606761,194.95,194.82,10.17607685]
[1735443134468,16.07606761,194.96,194.85,20.0]
[1735443134666,16.07606761,194.96,194.81,77.67607685]
[1735443135089,52.18202331,194.97,194.84,20.0]
[1735443135695,16.07606761,194.96,194.84,20.0]
[1735443137090,20.02988808,194.97,194.84,20.0]
[1735443137392,3.95382047,194.97,194.84,20.0]
[1735443138197,20.02988808,194.97,194.84,20.0]
[1735443139196,23.776884,194.96,194.84,20.0]
[1735443139393,23.776884,194.96,194.81,67.5]
[1735443140684,23.776884,194.96,194.8,6.3739]
[1735443141398,23.776884,194.92,194.8,6.3739]
[1735443145096,36.07606761,194.93,194.8,6.3739]
[1735443147201,20.0,194.92,194.8,6.3739]
[1735443148794,16.07606761,194.93,194.8,6.3739]
[1735443149690,19.6455403,194.93,194.8,6.3739]
[1735443150312,20.0,194.92,194.8,6.3739]
[1735443151105,16.07606761,194.93,194.8,6.3739]
[1735443151302,16.07606761,194.93,194.81,33.95296085]
[1735443151501,16.07606761,194.93,194.82,10.94575029]
[1735443152300,20.02988808,194.96,194.82,78.44575029]
[1735443153318,3.95382047,194.96,194.82,78.44575029]
[1735443154188,3.95382047,194.96,194.82,68.26967344]
[1735443154394,20.02988808,194.96,194.82,67.5]
[1735443155702,20.02988808,194.96,194.83,20.0]
[1735443156419,20.02988808,194.96,194.84,20.0]
[1735443158420,20.02988808,194.96,194.82,10.17607685]
[1735443158421,3.95382047,194.96,194.83,20.0]
[1735443159125,17.62556761,194.98,194.84,20.0]
[1735443159721,16.07606761,194.96,194.84,20.0]
[1735443160918,16.01606761,194.96,194.84,20.0]
[1735443161817,3.56808169,194.97,194.84,20.0]
[1735443163806,33.70163523,194.98,194.84,20.0]
[1735443164007,20.0,194.97,194.84,20.0]
[1735443169340,23.776884,194.97,194.84,20.0]
[1735443173329,1.5495,194.98,194.84,20.0]
[1735443174445,8.09177633,194.96,194.84,20.0]
[1735443182047,23.776884,194.95,194.84,20.0]
[1735443182233,8.09177633,194.96,194.83,20.0]
[1735443188856,8.09177633,194.96,194.84,20.0]
[1735443191363,8.09177633,194.96,194.81,68.26964136]
[1735443194470,8.09177633,194.96,194.84,20.0]
[1735443197875,8.09177633,194.95,194.84,20.0]
[1735443201357,8.09177633,194.95,194.81,67.5]
[1735443201782,8.09177633,194.93,194.81,67.5]
[1735443202757,23.776884,194.92,194.8,6.3739]
[1735443203359,31.86866033,194.92,194.8,6.3739]
[1735443203673,23.776884,194.9,194.74,7.9688]
[1735443204086,27.73070447,194.9,194.74,7.9688]
[1735443204382,8.09177633,194.85,194.74,7.9688]
[1735443204962,8.09177633,194.86,194.74,7.9688]
[1735443205573,8.09177633,194.85,194.74,7.9688]
[1735443206077,8.09177633,194.86,194.74,7.9688]
[1735443207088,3.57410027,194.89,194.74,7.9688]
[1735443207089,8.09177633,194.87,194.74,7.9688]
[1735443207863,23.776884,194.86,194.74,7.9688]
[1735443208777,8.09177633,194.88,194.74,7.9688]
[1735443208969,20.0,194.85,194.74,7.9688]
[1735443210563,8.09177633,194.87,194.74,7.9688]
[1735443210564,8.09177633,194.87,194.75,0.77007236]
[1735443210763,8.09177633,194.88,194.75,0.77007236]
[1735443211472,8.09177633,194.88,194.75,10.94614921]
[1735443211782,3.95382047,194.9,194.75,10.94614921]
[1735443212011,3.95382047,194.9,194.75,78.44614921]
[1735443213484,20.0,194.88,194.75,78.44614921]
[1735443213671,20.0,194.88,194.75,10.94614921]
[1735443213866,20.0,194.88,194.76,33.95296085]
[1735443214075,20.0,194.88,194.77,0.7698036]
[1735443215383,3.95382047,194.9,194.77,68.2698036]
[1735443215586,3.95382047,194.9,194.81,7.9688]
[1735443220671,9.61437633,194.91,194.81,7.9688]
[1735443221288,1.5226,194.91,194.81,7.9688]
[1735443221585,8.09177633,194.92,194.81,7.9688]
[1735443221991,8.09177633,194.91,194.81,7.9688]
[1735443222882,8.09177633,194.91,194.78,67.5]
[1735443223067,20.0,194.88,194.78,67.5]
[1735443223667,20.0,194.88,194.76,8.122]
[1735443224391,28.09177633,194.88,194.76,8.122]
[1735443224691,28.03205626,194.88,194.76,8.122]
[1735443224988,8.09177633,194.87,194.76,8.122]
[1735443225696,28.03205626,194.88,194.76,8.122]
[1735443227497,8.09177633,194.87,194.76,8.122]
[1735443228172,28.03205626,194.88,194.76,8.122]
[1735443228894,8.09177633,194.87,194.76,8.122]
[1735443229694,28.03205626,194.88,194.76,8.122]
[1735443231802,1.28801564,194.87,194.76,8.122]
[1735443232287,1.28801564,194.86,194.76,8.122]
[1735443232884,1.28801564,194.85,194.76,8.122]
[1735443233403,1.28801564,194.84,194.76,8.122]
[1735443233696,1.28801564,194.83,194.76,8.122]
[1735443234502,1.28801564,194.82,194.76,8.122]
[1735443235003,1.28801564,194.81,194.76,8.122]
[1735443235377,1.28801564,194.81,194.77,0.76994313]
[1735443235576,1.28801564,194.8,194.77,0.76994313]
[1735443236195,1.28801564,194.79,194.78,20.0]
[1735443236903,5.52220595,194.9,194.78,20.0]
[1735443237305,1.2877937,194.89,194.78,20.0]
[1735443238006,1.2877937,194.88,194.78,20.0]
[1735443238487,1.2877937,194.87,194.78,20.0]
[1735443238912,1.2877937,194.86,194.78,20.0]
[1735443239410,1.2877937,194.85,194.78,20.0]
[1735443239704,1.2877937,194.84,194.78,20.0]
[1735443240309,1.2877937,194.83,194.78,20.0]
[1735443241019,1.2877937,194.82,194.78,20.0]
[1735443241513,1.2877937,194.81,194.78,20.0]
[1735443242116,1.2877937,194.8,194.78,20.0]
[1735443242510,13.61398228,194.9,194.78,20.0]
[1735443242511,1.2877937,194.79,194.78,20.0]
[1735443247115,9.66007633,194.9,194.78,20.0]
[1735443247502,9.66007633,194.9,194.79,0.76978488]
[1735443247896,1.28776749,194.89,194.79,0.76978488]
[1735443248706,1.28776749,194.88,194.79,0.76978488]
[1735443249422,1.28776749,194.87,194.79,0.76978488]
[1735443249906,1.28776749,194.86,194.79,0.76978488]
[1735443250415,1.28776749,194.85,194.79,0.76978488]
[1735443250989,1.28776749,194.84,194.79,0.76978488]
[1735443251619,1.28776749,194.83,194.79,0.76978488]
[1735443252213,1.28776749,194.82,194.79,0.76978488]
[1735443252817,1.28776749,194.81,194.79,0.76978488]
[1735443253316,1.28776749,194.81,194.78,20.0]
[1735443253491,1.28776749,194.8,194.79,20.0]
[1735443256424,1.28776749,194.8,194.77,67.5]
[1735443256615,1.28776749,194.8,194.71,76.45154506]
[1735443257216,1.28776749,194.79,194.74,20.0]
[1735443257421,1.28776749,194.79,194.74,20.77003055]
[1735443257624,1.28776749,194.78,194.74,20.77003055]
[1735443258427,1.28776749,194.77,194.74,20.0]
[1735443258821,1.28776749,194.76,194.75,20.0]
[1735443264328,8.09177633,194.83,194.75,20.0]
[1735443264534,1.28796788,194.76,194.75,20.0]
[1735443269630,1.28796788,194.76,194.75,43.776884]
[1735443270434,8.09177633,194.86,194.77,20.0]
[1735443271124,1.2877949,194.85,194.77,20.0]
[1735443271519,1.2877949,194.84,194.74,68.26995393]
[1735443271723,1.2877949,194.84,194.74,67.5]
[1735443272109,1.2877949,194.83,194.74,67.5]
[1735443272603,1.2877949,194.82,194.74,67.5]
[1735443272823,1.2877949,194.82,194.75,20.0]
[1735443273223,1.2877949,194.81,194.74,20.0]
[1735443273831,1.2877949,194.8,194.74,20.0]
[1735443274212,1.2877949,194.79,194.74,20.0]
[1735443274707,1.2877949,194.78,194.75,20.0]
[1735443275120,1.2877949,194.77,194.75,20.0]
[1735443275612,1.2877949,194.76,194.75,20.0]
[1735443280622,1.2877949,194.76,194.75,20.76994499]
[1735443281941,1.2877949,194.76,194.75,88.26994499]
[1735443287032,1.2877949,194.76,194.75,112.04682899]
[1735443287233,1.2877949,194.76,194.75,111.276884]
[1735443287531,8.09177633,194.85,194.75,87.5]
[1735443287733,14.36047633,194.88,194.79,20.0]
[1735443287933,1.28763736,194.84,194.8,0.76979668]
[1735443288343,1.28763736,194.83,194.8,0.76979668]
[1735443289246,1.28763736,194.82,194.8,0.76979668]
[1735443289847,1.28763736,194.81,194.8,20.76979668]
[1735443291636,1.28763736,194.81,194.78,67.5]
[1735443292029,1.28763736,194.81,194.77,20.0]
[1735443292542,1.28763736,194.8,194.77,20.0]
[1735443292746,1.28763736,194.8,194.76,0.7699484]
[1735443292937,1.28763736,194.8,194.73,8.68572683]
[1735443293138,1.28763736,194.79,194.73,8.68572683]
[1735443293544,1.28763736,194.78,194.73,20.77002683]
[1735443294164,1.28763736,194.77,194.73,20.77002683]
[1735443294939,1.28763736,194.76,194.73,20.77002683]
[1735443295647,1.28763736,194.75,194.73,20.77002683]
[1735443296270,1.28763736,194.74,194.73,20.77002683]
[1735443300947,1.28763736,194.74,194.73,20.0]
[1735443301142,1.28763736,194.74,194.71,0.77010333]
[1735443301376,1.28763736,194.74,194.65,8.0095]
[1735443301549,1.28763736,194.74,194.66,0.77022874]
[1735443301754,1.28763736,194.73,194.69,20.0]
[1735443302370,1.28763736,194.72,194.69,20.0]
[1735443302869,1.28763736,194.71,194.7,0.77021449]
[1735443303245,1.28763736,194.71,194.7,20.77021449]
[1735443304445,1.28763736,194.71,194.7,0.77021449]
[1735443305277,8.09177633,194.81,194.73,20.0]
[1735443305668,14.30707633,194.82,194.73,20.0]
[1735443305974,1.28817976,194.81,194.73,20.0]
[1735443306946,1.28817976,194.8,194.73,20.0]
[1735443307353,1.28817976,194.79,194.73,20.0]
[1735443308180,1.28817976,194.78,194.73,20.0]
[1735443308553,1.28817976,194.77,194.73,20.0]
[1735443308876,1.28817976,194.77,194.74,20.0]
[1735443309060,1.28817976,194.76,194.74,20.0]
[1735443309766,1.28817976,194.75,194.74,20.0]
[1735443314556,1.28817976,194.75,194.74,20.77006788]
[1735443315272,17.73206467,194.84,194.75,23.776884]
[1735443315273,1.5811,194.84,194.75,23.776884]
[1735443315483,1.5811,194.84,194.78,20.0]
[1735443315661,1.5811,194.84,194.79,0.76982821]
[1735443315856,1.28785682,194.83,194.79,0.76982821]
[1735443316377,1.28785682,194.82,194.79,0.76982821]
[1735443316873,1.28785682,194.81,194.79,0.76982821]
[1735443317462,1.28785682,194.8,194.79,0.76982821]
[1735443317665,1.28785682,194.8,194.79,20.76982821]
[1735443319354,1.28785682,194.8,194.79,112.04671221]
[1735443319559,1.5116,194.89,194.79,111.276884]
[1735443319981,1.28759339,194.88,194.79,111.276884]
[1735443320489,1.28759339,194.87,194.79,111.276884]
[1735443320780,1.28759339,194.87,194.8,0.76972236]
[1735443321083,1.28759339,194.86,194.8,0.76972236]
[1735443321891,1.28759339,194.85,194.8,68.26972236]
[1735443322493,1.28759339,194.84,194.8,68.26972236]
[1735443323167,1.28759339,194.83,194.82,20.0]
[1735443323698,1.28759339,194.83,194.82,112.0464933]
[1735443323857,1.28759339,194.83,194.82,111.276884]
[1735443324301,9.64037633,194.93,194.82,111.276884]
[1735443324990,1.5486,194.93,194.82,111.276884]
[1735443325291,1.5486,194.93,194.83,0.76958931]
[1735443329973,1.5486,194.93,194.83,68.26958931]
[1735443335101,14.50327633,194.97,194.87,67.5]
[1735443335102,8.09177633,194.97,194.87,67.5]
[1735443335306,8.09177633,194.97,194.9,20.0]
[1735443335901,1.5486,194.98,194.9,20.0]
[1735443338979,1.5486,194.98,194.88,20.0]
[1735443342319,8.09177633,195.0,194.91,23.776884]
[1735443342521,8.09177633,195.01,194.92,68.26922402]
[1735443343176,8.09177633,195.01,194.93,23.776884]
[1735443343376,8.09177633,195.06,194.94,68.26915457]
[1735443344196,20.0,195.05,194.94,68.26915457]
[1735443344387,20.0,195.05,194.94,67.5]
[1735443344704,23.776884,195.02,194.9,7.663]
[1735443355818,31.86866033,195.02,194.9,7.663]
[1735443358214,8.09177633,195.02,194.9,17.83907685]
[1735443360095,8.09177633,195.02,194.9,85.33907685]
[1735443360297,8.09177633,195.02,194.9,75.163]
[1735443360614,23.776884,195.01,194.9,75.163]
[1735443360788,31.86866033,195.01,194.9,75.163]
[1735443361719,31.86866033,195.01,194.9,7.663]
[1735443361720,8.09177633,195.0,194.9,7.663]
[1735443362308,8.09177633,194.99,194.9,7.663]
[1735443363115,8.09177633,194.99,194.9,20.0]
[1735443363701,23.776884,194.95,194.85,1.6391]
[1735443364294,31.86866033,194.95,194.85,1.6391]
[1735443364796,8.09177633,194.95,194.85,1.6391]
[1735443365123,8.09177633,194.93,194.87,20.0]
[1735443365320,8.09177633,194.94,194.87,20.0]
[1735443366015,9.72877633,194.96,194.87,20.0]
[1735443367529,8.09177633,194.96,194.88,0.76953111]
[1735443367750,8.09177633,194.96,194.88,20.76953111]
[1735443368022,8.09177633,194.97,194.88,20.76953111]
[1735443371927,8.09177633,194.96,194.88,20.76953111]
[1735443372834,8.09177633,194.96,194.89,16.21497685]
[1735443373019,8.09177633,194.96,194.9,20.76933493]
[1735443373833,8.09177633,194.99,194.9,20.76933493]
[1735443374724,8.09177633,195.0,194.9,20.76933493]
[1735443376525,8.09177633,195.0,194.9,30.94541178]
[1735443377129,8.09177633,195.0,194.9,20.76933493]
[1735443377429,8.09177633,195.0,194.9,30.94541178]
[1735443378018,8.09177633,195.0,194.9,20.76933493]
[1735443380334,8.09177633,195.0,194.91,11.81367685]
[1735443380528,8.09177633,195.0,194.92,0.76926512]
[1735443383227,8.09177633,195.0,194.92,68.26926512]
[1735443385434,8.09177633,195.0,194.93,10.17607685]
[1735443385628,8.09177633,195.0,194.94,0.76922073]
[1735443385831,8.09177633,195.0,194.95,20.0]
[1735443388616,8.09177633,195.0,194.96,7.42567337]
[1735443389533,8.09177633,195.02,194.95,67.5]
[1735443389735,8.09177633,195.02,194.93,0.76922239]
[1735443389945,8.09177633,195.02,194.91,8.2941]
[1735443390437,8.09177633,194.99,194.91,8.2941]
[1735443390616,8.09177633,194.99,194.91,9.06343414]
[1735443391119,8.09177633,194.99,194.91,19.23951099]
[1735443391750,8.09177633,195.01,194.91,19.23951099]
[1735443392052,8.09177633,195.01,194.91,9.06343414]
[1735443392414,8.09177633,195.01,194.91,19.23951099]
[1735443393155,8.09177633,195.01,194.94,20.0]
[1735443393839,8.09177633,195.01,194.93,10.94530424]
[1735443394434,8.09177633,195.02,194.94,20.0]
[1735443396337,8.09177633,195.01,194.94,20.0]
[1735443401150,8.09177633,194.99,194.94,20.0]
[1735443403153,8.09177633,195.01,194.94,20.0]
[1735443410157,8.09177633,195.0,194.94,20.0]
[1735443410337,8.09177633,195.0,194.93,20.0]
[1735443411869,8.09177633,195.0,194.94,20.0]
[1735443412540,8.09177633,195.0,194.92,10.17607685]
[1735443412745,8.09177633,195.0,194.93,0.76929177]
[1735443413166,8.09177633,195.0,194.94,20.0]
[1735443413349,8.09177633,195.0,194.93,20.0]
[1735443417565,8.09177633,194.99,194.93,20.0]
[1735443418364,8.09177633,194.99,194.91,0.76929116]
[1735443418552,8.09177633,194.99,194.93,20.0]
[1735443420169,8.09177633,194.98,194.91,20.0]
[1735443421668,8.09177633,194.98,194.92,20.0]
[1735443423063,8.09177633,194.98,194.89,0.76938885]
[1735443423269,8.09177633,194.98,194.88,10.94550297]
[1735443423467,8.09177633,194.98,194.91,20.0]
[1735443423681,8.09177633,194.98,194.88,10.94550297]
[1735443423854,23.776884,194.97,194.82,8.2312]
[1735443424171,23.776884,194.93,194.82,8.2312]
[1735443424378,25.376584,194.93,194.82,8.2312]
[1735443424672,25.376584,194.93,194.82,20.0]
[1735443424855,8.09177633,194.9,194.82,20.0]
[1735443425359,8.09177633,194.9,194.81,20.0]
[1735443425568,8.09177633,194.88,194.81,20.0]
[1735443425766,8.09177633,194.88,194.78,0.76969902]
[1735443425966,8.09177633,194.88,194.77,18.40727685]
[1735443427067,8.09177633,194.88,194.8,20.0]
[1735443427676,8.09177633,194.89,194.8,20.0]
[1735443428677,8.09177633,194.9,194.8,20.0]
[1735443429075,23.776884,194.9,194.8,20.0]
[1735443432679,23.776884,194.91,194.8,20.0]
[1735443435482,23.776884,194.92,194.8,20.0]
[1735443438363,23.776884,194.92,194.77,8.2312]
[1735443441011,23.776884,194.86,194.72,7.7681]
[1735443441296,23.776884,194.86,194.75,20.0]
[1735443441481,23.776884,194.86,194.72,7.7681]
[1735443442265,20.0,194.83,194.68,16.35387685]
[1735443442500,23.776884,194.82,194.68,6.1778]
[1735443442682,23.776884,194.82,194.71,20.0]
[1735443443068,23.776884,194.82,194.68,6.1778]
[1735443443391,23.776884,194.82,194.71,20.0]
[1735443445782,23.776884,194.82,194.72,20.0]
[1735443449781,23.776884,194.82,194.71,20.0]
[1735443453098,23.776884,194.8,194.68,6.1778]
[1735443460491,23.776884,194.8,194.68,6.94807135]
[1735443466013,23.776884,194.8,194.68,6.1778]
[1735443472203,23.776884,194.78,194.64,6.3518]
[1735443475319,31.86866033,194.78,194.64,6.3518]
[1735443476215,23.776884,194.76,194.64,6.3518]
[1735443477913,23.776884,194.74,194.62,1.6271]
[1735443478320,23.776884,194.74,194.63,20.0]
[1735443478907,23.776884,194.74,194.62,1.6271]
[1735443480312,23.776884,194.7,194.6,6.0594]
[1735443480901,23.776884,194.7,194.59,20.0]
[1735443481100,23.776884,194.7,194.57,1.5111]
[1735443481301,23.776884,194.68,194.57,1.5111]
[1735443482903,23.776884,194.68,194.56,6.0594]
[1735443486646,8.09177633,194.7,194.59,31.68717685]
[1735443486926,8.09177633,194.7,194.6,10.94661681]
[1735443487303,23.776884,194.73,194.6,10.94661681]
[1735443487724,23.776884,194.73,194.6,0.77053996]
[1735443488824,23.776884,194.73,194.59,89.0111]
[1735443490427,23.776884,194.7,194.59,21.5111]
[1735443491118,23.776884,194.7,194.6,20.0]
[1735443493933,20.0,194.71,194.59,21.5111]
[1735443494111,20.0,194.71,194.6,10.17607685]
[1735443494430,8.09177633,194.72,194.61,10.94663919]
[1735443494915,8.09177633,194.72,194.59,21.5111]
[1735443494916,23.776884,194.73,194.6,10.17607685]
[1735443497112,23.776884,194.73,194.6,10.94662237]
[1735443503338,23.776884,194.73,194.6,0.77054552]
[1735443503641,23.776884,194.73,194.6,10.94662237]
[1735443504211,23.776884,194.73,194.59,99.18717685]
[1735443504415,23.776884,194.73,194.59,31.68717685]
[1735443505235,23.776884,194.73,194.6,10.17607685]
[1735443505626,23.776884,194.73,194.61,10.17607685]
[1735443506340,23.776884,194.73,194.6,10.17607685]
[1735443511042,31.86866033,194.73,194.6,10.17607685]
[1735443512343,23.776884,194.73,194.6,10.17607685]
[1735443512540,8.09177633,194.74,194.63,10.17607685]
[1735443512743,8.09177633,194.74,194.69,20.0]
[1735443512922,8.09177633,194.74,194.71,10.17607685]
[1735443513344,8.09177633,194.74,194.7,10.17607685]
[1735443513541,8.09177633,194.79,194.7,10.17607685]
[1735443514443,8.09177633,194.81,194.69,68.27025914]
[1735443514650,8.09177633,194.81,194.7,10.17607685]
[1735443515546,8.09177633,194.81,194.71,0.77013261]
[1735443516339,8.09177633,194.82,194.71,10.94620946]
[1735443517249,23.776884,194.82,194.71,10.94620946]
[1735443517456,8.09177633,194.83,194.71,10.94620946]
[1735443517653,8.09177633,194.83,194.72,30.17607685]
[1735443517841,8.09177633,194.83,194.73,0.77004643]
[1735443518530,23.776884,194.83,194.73,0.77004643]
[1735443518928,23.776884,194.83,194.72,20.0]
[1735443519961,31.86866033,194.83,194.72,20.0]
[1735443521934,8.09177633,194.83,194.74,20.0]
[1735443522140,8.09177633,194.83,194.75,20.0]
[1735443522630,31.86866033,194.84,194.75,20.0]
[1735443522826,31.86866033,194.84,194.73,32.4993735]
[1735443523031,23.776884,194.84,194.73,32.4993735]
[1735443527252,23.776884,194.84,194.73,21.5532]
[1735443530458,23.776884,194.84,194.73,31.72927685]
[1735443531158,23.776884,194.84,194.73,21.5532]
[1735443531455,23.776884,194.84,194.73,31.72927685]
[1735443532165,23.776884,194.84,194.73,21.5532]
[1735443533663,23.776884,194.84,194.73,31.72927685]
[1735443533849,1.5927,194.85,194.73,31.72927685]
[1735443534045,1.5927,194.85,194.74,10.17607685]
[1735443534457,1.5927,194.85,194.73,31.72927685]
[1735443534758,23.776884,194.84,194.73,31.72927685]
[1735443536463,23.776884,194.84,194.74,10.17607685]
[1735443536960,8.09177633,194.88,194.75,17.13171315]
[1735443537174,8.09177633,194.88,194.76,10.17607685]
[1735443537478,23.776884,194.87,194.76,10.17607685]
[1735443537841,23.776884,194.88,194.76,10.17607685]
[1735443538682,23.776884,194.88,194.75,6.9556363]
[1735443538880,23.776884,194.88,194.75,16.36167685]
[1735443540080,23.776884,194.88,194.75,6.1856]
[1735443541083,8.09177633,194.87,194.75,6.1856]
[1735443544477,8.09177633,194.86,194.75,6.1856]
[1735443544682,23.776884,194.85,194.75,6.1856]
[1735443545749,23.776884,194.85,194.73,1.5532]
[1735443546753,23.776884,194.83,194.73,1.5532]
[1735443549063,25.383784,194.83,194.7,6.1856]
[1735443549282,25.383784,194.83,194.7,16.36167685]
[1735443549454,25.383784,194.83,194.71,10.17607685]
[1735443550388,33.47556033,194.83,194.71,10.17607685]
[1735443552877,31.86866033,194.83,194.73,30.17607685]
[1735443553057,8.09177633,194.83,194.76,10.17607685]
[1735443553880,23.776884,194.85,194.76,10.17607685]
[1735443554656,23.776884,194.86,194.76,10.17607685]
[1735443555683,31.86866033,194.86,194.76,10.17607685]
[1735443558981,8.09177633,194.86,194.77,10.17607685]
[1735443559201,8.09177633,194.86,194.79,30.17607685]
[1735443559766,17.33443084,194.88,194.79,30.17607685]
[1735443560070,8.09177633,194.88,194.79,30.17607685]
[1735443561484,23.776884,194.88,194.79,20.0]
[1735443562191,31.86866033,194.88,194.79,20.0]
[1735443562493,8.09177633,194.88,194.8,10.17607685]
[1735443562800,8.09177633,194.88,194.84,10.17607685]
[1735443563375,8.09177633,194.88,194.83,18.06627685]
[1735443563788,8.09177633,194.91,194.83,18.06627685]
[1735443563992,8.09177633,194.91,194.83,7.8902]
[1735443564694,8.09177633,194.91,194.83,7.3902]
[1735443565194,23.776884,194.9,194.79,10.17607685]
[1735443565692,8.09177633,194.89,194.79,10.17607685]
[1735443565904,23.776884,194.88,194.78,6.6474]
[1735443566190,23.776884,194.88,194.78,16.82347685]
[1735443566370,8.09177633,194.89,194.8,10.17607685]
[1735443566570,8.09177633,194.89,194.81,10.17607685]
[1735443566890,23.776884,194.89,194.81,10.17607685]
[1735443567463,8.09177633,194.89,194.81,10.17607685]
[1735443568695,8.09177633,194.89,194.8,10.17607685]
[1735443569190,8.09177633,194.89,194.79,11.82037685]
[1735443569395,8.09177633,194.89,194.78,6.6474]
[1735443570197,23.776884,194.86,194.78,6.6474]
[1735443570896,31.86866033,194.86,194.78,6.6474]
[1735443572500,31.86866033,194.86,194.75,11.82037685]
[1735443573573,31.86866033,194.86,194.75,1.6443]
[1735443576001,31.86866033,194.86,194.76,20.0]